{"text_format":"1","workbook":"xlsx","n_sheets":9,"sheets":["Admin","I_Portada","Summary","II_PLANIFICACIÓN","III_IMPLEMENTACIÓN","IV_SEGUIMIENTO","V_Información_del_país","VI_Facilitadores","VII_Disponibilidad_de_datos"],"not_rendered":{"charts":0,"images":1,"macros":1,"external_links":0,"defined_names":29,"comments":1,"pivot_tables":0},"unopened":[],"bounds":{"document_bytes":16777216,"sheet_cells":100000,"rows_first":2000,"rows_last":500,"rows_between":2000,"halvings":0,"cell_chars":16384,"cell_head_chars":4096},"cells_cut":0,"cells_raw":0,"read":"whole","date_system":"1900"}

{"sheet":"Admin","index":0,"n_rows":34,"n_cols":14,"rows_kept":34,"cut":false,"hidden":true,"merged":[]}
[]
[null,"Dropdown_list",null,null,null,null,null,null,"Restore conditional formatting"]
[null,"Sí"]
[null,"Parcial",null,null,null,null,null,null,"Col","F",null,"AND($F$4>=50%,$F$4<75%)","AND($F$4>0%,$F$4<50%)"]
[null,"No",null,"● empties any input values from the tool",null,null,null,null,"Row","Cell","Rule 1","Rule 2","Rule 3","Target range"]
[null,null,null,"● hides certain sheets",null,null,null,null,4,{"$f":"\"$\"&$J$4&\"$\"&I6","v":"$F$4"},{"$f":"\"AND(\"&$J6&\">=75%,\"&$J6&\"<=100%)\"","v":"AND($F$4>=75%,$F$4<=100%)"},{"$f":"\"AND(\"&$J6&\">=50%,\"&$J6&\"<75%)\"","v":"AND($F$4>=50%,$F$4<75%)"},{"$f":"\"AND(\"&$J6&\">0%,\"&$J6&\"<50%)\"","v":"AND($F$4>0%,$F$4<50%)"},"$H$29:$J$32"]
[null,"Guidebook name",null,"● protects certain sheets",null,null,null,null,9,"$F$9","AND($F$9>=75%,$F$9<=100%)","AND($F$9>=50%,$F$9<75%)","AND($F$9>0%,$F$9<50%)","$H$35:$J$38"]
[null,"Diseño de una hoja de ruta de estadísticas energéticas",null,"● sets the view",null,null,null,null,14,"$F$14","AND($F$14>=75%,$F$14<=100%)","AND($F$14>=50%,$F$14<75%)","AND($F$14>0%,$F$14<50%)","$H$41:$J$44"]
[null,null,null,null,null,null,null,null,19,"$F$19","AND($F$19>=75%,$F$19<=100%)","AND($F$19>=50%,$F$19<75%)","AND($F$19>0%,$F$19<50%)","$L$29:$N$32"]
[null,"Page numbers (PLAN, SETUP TRACK)",null,null,null,null,null,null,24,"$F$24","AND($F$24>=75%,$F$24<=100%)","AND($F$24>=50%,$F$24<75%)","AND($F$24>0%,$F$24<50%)","$L$35:$N$38"]
[null,"30-39",null,null,null,null,null,null,29,"$F$29","AND($F$29>=75%,$F$29<=100%)","AND($F$29>=50%,$F$29<75%)","AND($F$29>0%,$F$29<50%)","$L$41:$L$44"]
[null,"40-54",null,null,null,null,null,null,34,"$F$34","AND($F$34>=75%,$F$34<=100%)","AND($F$34>=50%,$F$34<75%)","AND($F$34>0%,$F$34<50%)","$P$29:$R$32"]
[null,"55-85",null,"● shows and unprotects all sheets",null,null,null,null,42,"$F$42","AND($F$42>=75%,$F$42<=100%)","AND($F$42>=50%,$F$42<75%)","AND($F$42>0%,$F$42<50%)","$P$35:$R$38"]
[null,null,null,"● shows headings",null,null,null,null,46,"$F$46","AND($F$46>=75%,$F$46<=100%)","AND($F$46>=50%,$F$46<75%)","AND($F$46>0%,$F$46<50%)","$P$41:$R$44"]
[null,"Tab names"]
[null,"I_Portada"]
[null,"II_PLANIFICACIÓN"]
[null,"III_IMPLEMENTACIÓN"]
[null,"IV_SEGUIMIENTO"]
[null,"V_Información_del_país"]
[null,"VI_Facilitadores"]
[null,"VII_Disponibilidad_de_datos"]
[]
[null,"Macro elements"]
[null,"ENGLISH","SPANISH","Code"]
[null,"Summary","Resumen","Summary"]
[null,"Full report","Completo","Full_report"]
[null,"Exit","Salir","Exit"]
[null,"Choose the result report type.","Elija el tipo de informe de resultados","Choose_type"]
[null,"NOTE: the output report will be saved on the user desktop","NOTA: El informe de salida se guardará en el escritorio del usuario.","Note_desktop"]
[null,"Country name is not valid. Please remove bad characters and retry!","El nombre del país no es válido. ¡Por favor elimine los caracteres incorrectos e intente nuevamente!","Name_invalid"]
[null,"Report created on:","Informe creado sobre:","Report_date"]
[null,"Please close the report before trying to re-create it.","Por favor cierre el informe antes de intentar recrearlo.","Close_report"]
[null,"Additional information (optional)","Información adicional (opcional)","Add_info"]

{"sheet":"I_Portada","index":1,"n_rows":16,"n_cols":6,"rows_kept":16,"cut":false,"hidden":false,"merged":[[5,1,5,2],[7,1,7,2],[8,5,9,5],[0,2,0,6],[3,1,3,2],[4,1,4,2],[8,1,8,2]]}
[null,null,"Diseño de una hoja de ruta de estadísticas sobre energía\nHerramienta de evaluación"]
[null,"Versión del cuestionario 2024_09_16"]
[null,"Enlace a la guía:",null,null,null,"Para cualquier consulta, contacte a través de:"]
[null,"Diseño de una hoja de ruta de estadísticas energéticas",null,null,null,"DataCapacities@iea.org"]
[null,"Descripción de la herramienta:"]
[null,"Esta herramienta se basa en el documento «Diseño de una hoja de ruta de estadísticas energéticas: Guía para fortalecer las capacidades nacionales para el seguimiento de las transiciones energéticas» de la AIE. Permite a las partes interesadas a nivel nacional responsables del desarrollo de estadísticas energéticas documentar y cuantificar el estado de las capacidades actuales para elaborar información energética. \n\n"]
[null,"Uso:"]
[null,"Lea detenidamente la guía antes de responder las secciones del cuestionario. El cuestionario se puede utilizar de forma independiente o rellenar con ayuda de personal experto externo (por ejemplo, especialistas en datos energéticos de la AIE) mediante una entrevista telefónica asistida por ordenador (CAPI). Los resultados se pueden exportar en formato PDF utilizando el botón integrado (se guarda en el escritorio)."]
[null,"Instrucciones de cumplimentación para cada hoja:",null,null,null,"Indique el nombre del país:"]
[null,"I_Portada","Esta hoja."]
[null,"II_PLANIFICACIÓN",{"$f":"\"Corresponde a la sección «PLANIFICACIÓN» de la guía (consulte el documento, páginas \"&PLAN&\"). Rellene las celdas azules.\"","v":"Corresponde a la sección «PLANIFICACIÓN» de la guía (consulte el documento, páginas 30-39). Rellene las celdas azules."}]
[null,"III_IMPLEMENTACIÓN",{"$f":"\"Corresponde a la sección «IMPLEMENTACIÓN» de la guía (consulte el documento, páginas \"&SETUP&\"). Rellene las celdas azules.\"","v":"Corresponde a la sección «IMPLEMENTACIÓN» de la guía (consulte el documento, páginas 40-54). Rellene las celdas azules."},null,null,"Después de responder, haga clic en el botón para crear un informe de los resultados (el PDF aparecerá en el escritorio)"]
[null,"IV_SEGUIMIENTO",{"$f":"\"Corresponde a la sección «SEGUIMIENTO» de la guía (consulte el documento, páginas \"&TRACK&\"). Rellene las celdas azules.\"","v":"Corresponde a la sección «SEGUIMIENTO» de la guía (consulte el documento, páginas 55-85). Rellene las celdas azules."}]
[null,"V_Información_del_país","Recopila información general del contexto nacional."]
[null,"VI_Facilitadores","Contiene la evaluación de los facilitadores clave. Rellene las celdas azules."]
[null,"VII_Disponibilidad_de_datos","Incluye la evaluación de la disponibilidad de datos energéticos. Rellene las celdas azules. Tenga en cuenta que se puede rellenar también independientemente de las otras secciones."]

{"sheet":"Summary","index":2,"n_rows":69,"n_cols":33,"rows_kept":69,"cut":false,"hidden":true,"merged":[[3,0,14,0],[33,32,33,34],[27,0,40,0],[15,0,26,0],[33,19,33,21],[8,24,9,29],[8,31,9,35],[8,21,9,22],[8,18,9,19],[11,25,14,28],[17,25,20,28],[23,32,26,34],[23,19,26,21],[23,25,26,28],[11,19,14,21],[11,32,14,34],[33,25,33,28],[37,17,38,35],[42,29,42,31],[1,17,1,35],[3,17,4,35],[17,32,20,34],[17,19,20,21],[50,29,50,31],[51,29,51,31],[40,29,40,31],[43,29,43,31],[45,29,45,31],[46,29,46,31],[48,29,48,31],[49,29,49,31]]}
[null,null,"ColIndex",3,5,null,null,null,null,null,null,"Ratings:","Green","Yellow","Red"]
[null,"RowIndex",null,"Title","Answer","Numeric evaluation",null,"Questions","Unanswered questions","Yes","Partial","No",3,2,1,"Rating",null,{"$f":"Roadmap_name&\": Resumen de la evaluación\"","v":"Diseño de una hoja de ruta de estadísticas energéticas: Resumen de la evaluación"}]
[]
["Named range \"data_II\"",{"$f":"MATCH(C4,INDEX(data_II_PLAN,,2),0)","v":1},"1.",{"$f":"INDEX(data_II_PLAN,$B4,D$1)","v":"Necesidades de datos y usuarios/as"},null,{"$f":"SUM(F5:F7)/(COUNTA(E5:E7)*3)","v":0},null,{"$f":"COUNTA($E5:$E7)","v":3},{"$f":"COUNTA($E5:$E7)-SUM($J4:$L4)","v":3},{"$f":"COUNTIF($E5:$E7,J$2)","v":0},{"$f":"COUNTIF($E5:$E7,K$2)","v":0},{"$f":"COUNTIF($E5:$E7,L$2)","v":0},{"$f":"J4=H4","v":false},{"$f":"IF(M4=FALSE,(J4/2+K4>=L4),FALSE)","v":true},{"$f":"IF(M4=FALSE,(J4/2+K4<L4),FALSE)","v":false},{"$f":"IF(I4=0,SUMPRODUCT($M$2:$O$2*M4:O4),0)","v":0},null,{"$f":"UPPER(country_name) &\": Repuestas por tema\"","v":": Repuestas por tema"}]
[null,3,"1.A",{"$f":"INDEX(data_II_PLAN,$B5,D$1)","v":"¿Existen políticas energéticas relevantes que requieran datos de energía para su diseño y evaluación?"},{"$f":"INDEX(data_II_PLAN,$B5,E$1)","v":0},{"$f":"IF(E5=\"Yes\",3,IF(E5=\"Partial\",2,IF(E5=\"No\",1,0)))","v":0}]
[null,11,"1.B",{"$f":"INDEX(data_II_PLAN,$B6,D$1)","v":"¿Se sabe quiénes utilizarán los datos?"},{"$f":"INDEX(data_II_PLAN,$B6,E$1)","v":0},{"$f":"IF(E6=\"Yes\",3,IF(E6=\"Partial\",2,IF(E6=\"No\",1,0)))","v":0}]
[null,19,"1.C",{"$f":"INDEX(data_II_PLAN,$B7,D$1)","v":"¿Se identifican y abordan de forma periódica las necesidades cambiantes de datos?"},{"$f":"INDEX(data_II_PLAN,$B7,E$1)","v":0},0]
[null,27,"2.",{"$f":"INDEX(data_II_PLAN,$B8,D$1)","v":"Desarrollo de la estrategia"},null,{"$f":"SUM(F9:F11)/(COUNTA(E9:E11)*3)","v":0},null,{"$f":"COUNTA($E9:$E11)","v":3},{"$f":"COUNTA($E9:$E11)-SUM($J8:$L8)","v":3},{"$f":"COUNTIF($E9:$E11,J$2)","v":0},{"$f":"COUNTIF($E9:$E11,K$2)","v":0},{"$f":"COUNTIF($E9:$E11,L$2)","v":0},{"$f":"J8=H8","v":false},{"$f":"IF(M8=FALSE,(J8/2+K8>=L8),FALSE)","v":true},{"$f":"IF(M8=FALSE,(J8/2+K8<L8),FALSE)","v":false},{"$f":"IF(I8=0,SUMPRODUCT($M$2:$O$2*M8:O8),0)","v":0}]
[null,29,"2.A",{"$f":"INDEX(data_II_PLAN,$B9,D$1)","v":"¿Existe una estrategia para la generación y el desarrollo de datos energéticos? "},{"$f":"INDEX(data_II_PLAN,$B9,E$1)","v":0},0,null,null,null,null,null,null,null,null,null,null,null,null,null,null,null,"PLANIFICACIÓN (dimensión estratégica)",null,null,"IMPLEMENTACIÓN (dimensión operativa)",null,null,null,null,null,null,"SEGUIMIENTO (procesamiento de datos)"]
[null,37,"2.B",{"$f":"INDEX(data_II_PLAN,$B10,D$1)","v":"¿Incluye la estrategia la identificación de las prioridades en la recopilación de datos?"},{"$f":"INDEX(data_II_PLAN,$B10,E$1)","v":0},0]
[null,45,"2.C",{"$f":"INDEX(data_II_PLAN,$B11,D$1)","v":"¿Se actualiza con regularidad para responder a la evolución de las necesidades?"},{"$f":"INDEX(data_II_PLAN,$B11,E$1)","v":0},0]
[null,54,"3.",{"$f":"INDEX(data_II_PLAN,$B12,D$1)","v":"Mecanismos de financiación"},null,{"$f":"SUM(F13:F15)/(COUNTA(E13:E15)*3)","v":0},null,{"$f":"COUNTA($E13:$E15)","v":3},{"$f":"COUNTA($E13:$E15)-SUM($J12:$L12)","v":3},{"$f":"COUNTIF($E13:$E15,J$2)","v":0},{"$f":"COUNTIF($E13:$E15,K$2)","v":0},{"$f":"COUNTIF($E13:$E15,L$2)","v":0},{"$f":"J12=H12","v":false},{"$f":"IF(M12=FALSE,(J12/2+K12>=L12),FALSE)","v":true},{"$f":"IF(M12=FALSE,(J12/2+K12<L12),FALSE)","v":false},{"$f":"IF(I12=0,SUMPRODUCT($M$2:$O$2*M12:O12),0)","v":0},null,null,null,{"$f":"$D4","v":"Necesidades de datos y usuarios/as"},null,null,null,null,null,{"$f":"$D16","v":"Marco jurídico"},null,null,null,null,null,null,{"$f":"$D28","v":"Recopilación de datos, metodologías y verificación de la calidad"}]
[null,56,"3.A",{"$f":"INDEX(data_II_PLAN,$B13,D$1)","v":"¿Financia la administración nacional las principales estadísticas energéticas?"},{"$f":"INDEX(data_II_PLAN,$B13,E$1)","v":0},0]
[null,64,"3.B",{"$f":"INDEX(data_II_PLAN,$B14,D$1)","v":"¿Existen otros mecanismos de financiación además de los convencionales (es decir, fondos públicos)? "},{"$f":"INDEX(data_II_PLAN,$B14,E$1)","v":0},0]
[null,72,"3.C",{"$f":"INDEX(data_II_PLAN,$B15,D$1)","v":"¿Los mecanismos de financiación son suficientes y sostenibles para el trabajo rutinario y complementario?"},{"$f":"INDEX(data_II_PLAN,$B15,E$1)","v":0},0]
["Named range \"data_III\"",{"$f":"MATCH(C16,INDEX(data_III_SETUP,,2),0)","v":1},"4.",{"$f":"INDEX(data_III_SETUP,$B16,D$1)","v":"Marco jurídico"},null,{"$f":"SUM(F17:F19)/(COUNTA(E17:E19)*3)","v":0},null,{"$f":"COUNTA($E17:$E19)","v":3},{"$f":"COUNTA($E17:$E19)-SUM($J16:$L16)","v":3},{"$f":"COUNTIF($E17:$E19,J$2)","v":0},{"$f":"COUNTIF($E17:$E19,K$2)","v":0},{"$f":"COUNTIF($E17:$E19,L$2)","v":0},{"$f":"J16=H16","v":false},{"$f":"IF(M16=FALSE,(J16/2+K16>=L16),FALSE)","v":true},{"$f":"IF(M16=FALSE,(J16/2+K16<L16),FALSE)","v":false},{"$f":"IF(I16=0,SUMPRODUCT($M$2:$O$2*M16:O16),0)","v":0}]
[null,3,"4.A",{"$f":"INDEX(data_III_SETUP,$B17,D$1)","v":"¿Existe un marco normativo para las estadísticas energéticas (por ejemplo, una ley de estadísticas energéticas)? (Si hay uno para las estadísticas en general, responda «Parcial»)"},{"$f":"INDEX(data_III_SETUP,$B17,E$1)","v":0},0]
[null,11,"4.B",{"$f":"INDEX(data_III_SETUP,$B18,D$1)","v":"¿Requiere que quienes responden las encuestas proporcionen datos (es decir, tiene carácter obligatorio)?"},{"$f":"INDEX(data_III_SETUP,$B18,E$1)","v":0},0,null,null,null,null,null,null,null,null,null,null,null,null,null,{"$f":"$D8","v":"Desarrollo de la estrategia"},null,null,null,null,null,{"$f":"$D20","v":"Acuerdos institucionales"},null,null,null,null,null,null,{"$f":"$D34","v":"Gestión de datos e innovación"}]
[null,19,"4.C",{"$f":"INDEX(data_III_SETUP,$B19,D$1)","v":"¿Funciona y es adecuado para el trabajo? ¿Se asegura su cumplimiento?"},{"$f":"INDEX(data_III_SETUP,$B19,E$1)","v":0},0]
[null,{"$f":"MATCH(C20,INDEX(data_III_SETUP,,2),0)","v":27},"5.",{"$f":"INDEX(data_III_SETUP,$B20,D$1)","v":"Acuerdos institucionales"},null,{"$f":"SUM(F21:F23)/(COUNTA(E21:E23)*3)","v":0},null,{"$f":"COUNTA($E21:$E23)","v":3},{"$f":"COUNTA($E21:$E23)-SUM($J20:$L20)","v":3},{"$f":"COUNTIF($E21:$E23,J$2)","v":0},{"$f":"COUNTIF($E21:$E23,K$2)","v":0},{"$f":"COUNTIF($E21:$E23,L$2)","v":0},{"$f":"J20=H20","v":false},{"$f":"IF(M20=FALSE,(J20/2+K20>=L20),FALSE)","v":true},{"$f":"IF(M20=FALSE,(J20/2+K20<L20),FALSE)","v":false},{"$f":"IF(I20=0,SUMPRODUCT($M$2:$O$2*M20:O20),0)","v":0}]
[null,29,"5.A",{"$f":"INDEX(data_III_SETUP,$B21,D$1)","v":"¿Existe una entidad responsable de coordinar el sistema nacional de información energética?"},{"$f":"INDEX(data_III_SETUP,$B21,E$1)","v":0},{"$f":"IF(E21=\"Yes\",3,IF(E21=\"Partial\",2,IF(E21=\"No\",1,0)))","v":0}]
[null,37,"5.B",{"$f":"INDEX(data_III_SETUP,$B22,D$1)","v":"¿La distribución de tareas es lo suficientemente clara para evitar tanto las carencias como los solapamientos en la recopilación de datos?"},{"$f":"INDEX(data_III_SETUP,$B22,E$1)","v":0},{"$f":"IF(E22=\"Yes\",3,IF(E22=\"Partial\",2,IF(E22=\"No\",1,0)))","v":0}]
[null,45,"5.C",{"$f":"INDEX(data_III_SETUP,$B23,D$1)","v":"¿Se han establecido mecanismos para fomentar la colaboración institucional y el intercambio de datos a nivel nacional (por ejemplo, memorandos de entendimiento, convenios o grupos de trabajo)?"},{"$f":"INDEX(data_III_SETUP,$B23,E$1)","v":0},{"$f":"IF(E23=\"Yes\",3,IF(E23=\"Partial\",2,IF(E23=\"No\",1,0)))","v":0}]
[null,{"$f":"MATCH(C24,INDEX(data_III_SETUP,,2),0)","v":54},"6.",{"$f":"INDEX(data_III_SETUP,$B24,D$1)","v":"Recursos humanos, técnicos y financieros"},null,{"$f":"SUM(F25:F27)/(COUNTA(E25:E27)*3)","v":0},null,{"$f":"COUNTA($E25:$E27)","v":3},{"$f":"COUNTA($E25:$E27)-SUM($J24:$L24)","v":3},{"$f":"COUNTIF($E25:$E27,J$2)","v":0},{"$f":"COUNTIF($E25:$E27,K$2)","v":0},{"$f":"COUNTIF($E25:$E27,L$2)","v":0},{"$f":"J24=H24","v":false},{"$f":"IF(M24=FALSE,(J24/2+K24>=L24),FALSE)","v":true},{"$f":"IF(M24=FALSE,(J24/2+K24<L24),FALSE)","v":false},{"$f":"IF(I24=0,SUMPRODUCT($M$2:$O$2*M24:O24),0)","v":0},null,null,null,{"$f":"$D12","v":"Mecanismos de financiación"},null,null,null,null,null,{"$f":"$D24","v":"Recursos humanos, técnicos y financieros"},null,null,null,null,null,null,{"$f":"$D38","v":"Acceso a los datos y su difusión"}]
[null,{"$f":"MATCH(C25,INDEX(data_III_SETUP,,2),0)","v":56},"6.A",{"$f":"INDEX(data_III_SETUP,$B25,D$1)","v":"¿Los recursos técnicos y financieros disponibles son adecuados y tangibles a largo plazo?"},{"$f":"INDEX(data_III_SETUP,$B25,E$1)","v":0},{"$f":"IF(E25=\"Yes\",3,IF(E25=\"Partial\",2,IF(E25=\"No\",1,0)))","v":0}]
[null,{"$f":"MATCH(C26,INDEX(data_III_SETUP,,2),0)","v":64},"6.B",{"$f":"INDEX(data_III_SETUP,$B26,D$1)","v":"¿Sufren los recursos disponibles (humanos, técnicos y financieros) grandes fluctuaciones anuales o son relativamente estables a lo largo del tiempo?"},{"$f":"INDEX(data_III_SETUP,$B26,E$1)","v":0},{"$f":"IF(E26=\"Yes\",3,IF(E26=\"Partial\",2,IF(E26=\"No\",1,0)))","v":0}]
[null,{"$f":"MATCH(C27,INDEX(data_III_SETUP,,2),0)","v":72},"6.C",{"$f":"INDEX(data_III_SETUP,$B27,D$1)","v":"¿Existe suficiente capacidad de personal? ¿Recibe formación continua el personal?"},{"$f":"INDEX(data_III_SETUP,$B27,E$1)","v":0},{"$f":"IF(E27=\"Yes\",3,IF(E27=\"Partial\",2,IF(E27=\"No\",1,0)))","v":0}]
["Named range \"data_IV\"",{"$f":"MATCH(C28,INDEX(data_IV_TRACK,,2),0)","v":1},"7.",{"$f":"INDEX(data_IV_TRACK,$B28,D$1)","v":"Recopilación de datos, metodologías y verificación de la calidad"},null,{"$f":"SUM(F29:F33)/(COUNTA(E29:E33)*3)","v":0},null,{"$f":"COUNTA($E29:$E31)","v":3},{"$f":"COUNTA($E29:$E31)-SUM($J28:$L28)","v":3},{"$f":"COUNTIF($E29:$E31,J$2)","v":0},{"$f":"COUNTIF($E29:$E31,K$2)","v":0},{"$f":"COUNTIF($E29:$E31,L$2)","v":0},{"$f":"J28=H28","v":false},{"$f":"IF(M28=FALSE,(J28/2+K28>=L28),FALSE)","v":true},{"$f":"IF(M28=FALSE,(J28/2+K28<L28),FALSE)","v":false},{"$f":"IF(I28=0,SUMPRODUCT($M$2:$O$2*M28:O28),0)","v":0}]
[null,3,"7.A",{"$f":"INDEX(data_IV_TRACK,$B29,D$1)","v":"¿Se cuenta con métodos adecuados de recopilación de datos (por ejemplo, uso de fuentes administrativas y encuestas sectoriales y sobre combustible)? "},{"$f":"INDEX(data_IV_TRACK,$B29,E$1)","v":0},{"$f":"IF(E29=\"Yes\",3,IF(E29=\"Partial\",2,IF(E29=\"No\",1,0)))","v":0}]
[null,{"$f":"MATCH(C30,INDEX(data_IV_TRACK,,2),0)","v":11},"7.B",{"$f":"INDEX(data_IV_TRACK,$B30,D$1)","v":"¿La recopilación de datos sigue metodologías y estándares documentados? "},{"$f":"INDEX(data_IV_TRACK,$B30,E$1)","v":0},{"$f":"IF(E30=\"Yes\",3,IF(E30=\"Partial\",2,IF(E30=\"No\",1,0)))","v":0}]
[null,19,"7.C",{"$f":"INDEX(data_IV_TRACK,$B31,D$1)","v":"¿Existen procesos eficaces para controlar la calidad de los datos?"},{"$f":"INDEX(data_IV_TRACK,$B31,E$1)","v":0},{"$f":"IF(E31=\"Yes\",3,IF(E31=\"Partial\",2,IF(E31=\"No\",1,0)))","v":0}]
[null,22,"7.D",{"$f":"INDEX(data_IV_TRACK,$B32,D$1)","v":"¿Se aplican las siguientes referencias al contexto nacional? (Consulte la tabla de la página 58)"},{"$f":"F32","v":0},{"$f":"IFERROR(F45,0)","v":0},null,null,null,null,null,null,null,null,null,null,null,null,"Código de color"]
[null,35,"7.F",{"$f":"INDEX(data_IV_TRACK,$B33,D$1)","v":"¿La recopilación de datos actual refleja plenamente lo siguiente? (Consulte la tabla de las páginas 61-63)"},{"$f":"F33","v":0},{"$f":"IFERROR(F52,0)","v":0}]
[null,{"$f":"MATCH(C34,INDEX(data_IV_TRACK,,2),0)","v":50},"8.",{"$f":"INDEX(data_IV_TRACK,$B34,D$1)","v":"Gestión de datos e innovación"},null,{"$f":"SUM(F35:F37)/(COUNTA(E35:E37)*3)","v":0},null,{"$f":"COUNTA($E35:$E37)","v":3},{"$f":"COUNTA($E35:$E37)-SUM($J34:$L34)","v":3},{"$f":"COUNTIF($E35:$E37,J$2)","v":0},{"$f":"COUNTIF($E35:$E37,K$2)","v":0},{"$f":"COUNTIF($E35:$E37,L$2)","v":0},{"$f":"J34=H34","v":false},{"$f":"IF(M34=FALSE,(J34/2+K34>=L34),FALSE)","v":true},{"$f":"IF(M34=FALSE,(J34/2+K34<L34),FALSE)","v":false},{"$f":"IF(I34=0,SUMPRODUCT($M$2:$O$2*M34:O34),0)","v":0},null,null,null,"Debilidades significativas identificadas",null,null,null,null,null,"Se necesita algo de trabajo para\nfortalecer el elemento",null,null,null,null,null,null,"Al corriente para apoyar las políticas"]
[null,52,"8.A",{"$f":"INDEX(data_IV_TRACK,$B35,D$1)","v":"¿Es adecuado el marco actual de gestión de datos?"},{"$f":"INDEX(data_IV_TRACK,$B35,E$1)","v":0},{"$f":"IF(E35=\"Yes\",3,IF(E35=\"Partial\",2,IF(E35=\"No\",1,0)))","v":0}]
[null,60,"8.B",{"$f":"INDEX(data_IV_TRACK,$B36,D$1)","v":"¿Se puede aumentar la digitalización en los procesos de recopilación, gestión y difusión de datos?"},{"$f":"INDEX(data_IV_TRACK,$B36,E$1)","v":0},{"$f":"IF(E36=\"Yes\",3,IF(E36=\"Partial\",2,IF(E36=\"No\",1,0)))","v":0}]
[null,68,"8.C",{"$f":"INDEX(data_IV_TRACK,$B37,D$1)","v":"¿Existe algún plan o programa piloto para implantar métodos o enfoques innovadores en el sistema nacional de información energética?"},{"$f":"INDEX(data_IV_TRACK,$B37,E$1)","v":0},{"$f":"IF(E37=\"Yes\",3,IF(E37=\"Partial\",2,IF(E37=\"No\",1,0)))","v":0}]
[null,76,"9.",{"$f":"INDEX(data_IV_TRACK,$B38,D$1)","v":"Acceso a los datos y su difusión"},null,{"$f":"SUM(F39:F41)/(COUNTA(E39:E41)*3)","v":0},null,{"$f":"COUNTA($E39:$E41)","v":3},{"$f":"COUNTA($E39:$E41)-SUM($J38:$L38)","v":3},{"$f":"COUNTIF($E39:$E41,J$2)","v":0},{"$f":"COUNTIF($E39:$E41,K$2)","v":0},{"$f":"COUNTIF($E39:$E41,L$2)","v":0},{"$f":"J38=H38","v":false},{"$f":"IF(M38=FALSE,(J38/2+K38>=L38),FALSE)","v":true},{"$f":"IF(M38=FALSE,(J38/2+K38<L38),FALSE)","v":false},{"$f":"IF(I38=0,SUMPRODUCT($M$2:$O$2*M38:O38),0)","v":0},null,"Los datos energéticos disponibles permiten respaldar las políticas nacionales del siguiente modo:"]
[null,78,"9.A",{"$f":"INDEX(data_IV_TRACK,$B39,D$1)","v":"¿Son las estadísticas energéticas fácilmente localizables y accesibles? "},{"$f":"INDEX(data_IV_TRACK,$B39,E$1)","v":0},{"$f":"IF(E39=\"Yes\",3,IF(E39=\"Partial\",2,IF(E39=\"No\",1,0)))","v":0}]
[null,86,"9.B",{"$f":"INDEX(data_IV_TRACK,$B40,D$1)","v":"¿Los productos finales de datos son relevantes para quienes los van a utilizar?"},{"$f":"INDEX(data_IV_TRACK,$B40,E$1)","v":0},{"$f":"IF(E40=\"Yes\",3,IF(E40=\"Partial\",2,IF(E40=\"No\",1,0)))","v":0}]
[null,94,"9.C",{"$f":"INDEX(data_IV_TRACK,$B41,D$1)","v":"¿Son transparentes los datos? ¿Hay metadatos disponibles?"},{"$f":"INDEX(data_IV_TRACK,$B41,E$1)","v":0},{"$f":"IF(E41=\"Yes\",3,IF(E41=\"Partial\",2,IF(E41=\"No\",1,0)))","v":0},null,null,null,null,null,null,null,null,null,null,null,null,null,null,null,null,null,null,null,null,null,"Suministro energético","Demanda de energía","Actividad económica"]
[null,null,null,null,null,null,null,null,null,null,null,null,null,null,null,null,null,null,null,null,null,"Objetivos de desarrollo sostenible"]
[null,null,null,null,null,null,null,"Overall rating",null,"PLAN","SETUP","TRACK",null,null,null,null,null,null,null,null,null,"ODS 7.2",null,null,null,null,null,{"$f":"VII_Disponibilidad_de_datos!F58","v":".."},{"$f":"VII_Disponibilidad_de_datos!G58","v":".."},{"$f":"VII_Disponibilidad_de_datos!H58","v":".."}]
[null,null,null,null,null,null,null,null,"Blanks?",{"$f":"COUNTIF(J45:J47,0)>0=TRUE","v":true},{"$f":"COUNTIF(K45:K47,0)>0=TRUE","v":true},true,null,null,null,null,null,null,null,null,null,"ODS 7.3",null,null,null,null,null,{"$f":"VII_Disponibilidad_de_datos!F59","v":".."},{"$f":"VII_Disponibilidad_de_datos!G59","v":"n/a"},{"$f":"VII_Disponibilidad_de_datos!H59","v":".."}]
[null,null,null,"Table 4",null,{"$f":"ROUND(AVERAGEIF(F46:F50,\">0\",F46:F50),1)","v":{"$error":"#DIV/0!"}},null,null,"Q1",{"$f":"P4","v":0},{"$f":"P16","v":0},{"$f":"P28","v":0},null,null,null,null,null,null,null,null,null,"Informes climáticos internacionales"]
[null,null,null,{"$f":"IV_SEGUIMIENTO!C29","v":"● Recomendaciones Internacionales para las Estadísticas de Energía (IRES) [Naciones Unidas, 2011]"},{"$f":"IV_SEGUIMIENTO!E29","v":0},{"$f":"IF(E46=\"Yes\",3,IF(E46=\"Partial\",2,IF(E46=\"No\",1,0)))","v":0},null,null,"Q2",{"$f":"P8","v":0},{"$f":"P20","v":0},{"$f":"P34","v":0},null,null,null,null,null,null,null,null,null,"Inventario nacional de emisiones de gases de efecto invernadero (GEI)",null,null,null,null,null,{"$f":"VII_Disponibilidad_de_datos!F61","v":".."},{"$f":"VII_Disponibilidad_de_datos!G61","v":".."},{"$f":"VII_Disponibilidad_de_datos!H61","v":"n/a"}]
[null,null,null,{"$f":"IV_SEGUIMIENTO!C30","v":"● Clasificación Internacional Uniforme de Productos Energéticos (SIEC) [parte de las IRES]"},{"$f":"IV_SEGUIMIENTO!E30","v":0},{"$f":"IF(E47=\"Yes\",3,IF(E47=\"Partial\",2,IF(E47=\"No\",1,0)))","v":0},null,null,"Q3",{"$f":"P12","v":0},{"$f":"P24","v":0},{"$f":"P38","v":0},null,null,null,null,null,null,null,null,null,"Contribuciones determinadas a nivel nacional (CDN)",null,null,null,null,null,{"$f":"VII_Disponibilidad_de_datos!F62","v":".."},{"$f":"VII_Disponibilidad_de_datos!G62","v":".."},{"$f":"VII_Disponibilidad_de_datos!H62","v":".."}]
[null,null,null,{"$f":"IV_SEGUIMIENTO!C31","v":"● Clasificación Industrial Internacional Uniforme de todas las actividades económicas (CIIU)"},{"$f":"IV_SEGUIMIENTO!E31","v":0},0,null,null,null,null,null,null,null,null,null,null,null,null,null,null,null,"Políticas energéticas sectoriales nacionales"]
[null,null,null,{"$f":"IV_SEGUIMIENTO!C32","v":"● Manual de Compiladores de Estadísticas Energéticas (ESCM)"},{"$f":"IV_SEGUIMIENTO!E32","v":0},0,null,"Green",3,{"$f":"COUNTIF(J45:J47,3)=3","v":false},{"$f":"COUNTIF(K45:K47,3)=3","v":false},{"$f":"COUNTIF(L45:L47,3)=3","v":false},null,null,null,null,null,null,null,null,null,"Sustitución de combustibles",null,null,null,null,null,{"$f":"VII_Disponibilidad_de_datos!F64","v":".."},{"$f":"VII_Disponibilidad_de_datos!G64","v":".."},{"$f":"VII_Disponibilidad_de_datos!H64","v":"n/a"}]
[null,null,null,{"$f":"IV_SEGUIMIENTO!C33","v":"● Directrices del IPCC de 2006 para los inventarios nacionales de gases de efecto invernadero, volumen 2: Energía"},{"$f":"IV_SEGUIMIENTO!E33","v":0},0,null,"Yellow",2,{"$f":"IF(J49=FALSE,(J45/2+J46>=J47),FALSE)","v":true},{"$f":"IF(K49=FALSE,(K45/2+K46>=K47),FALSE)","v":true},{"$f":"IF(L49=FALSE,(L45/2+L46>=L47),FALSE)","v":true},null,null,null,null,null,null,null,null,null,"Objetivos de energía renovable",null,null,null,null,null,{"$f":"VII_Disponibilidad_de_datos!F65","v":".."},{"$f":"VII_Disponibilidad_de_datos!G65","v":".."},{"$f":"VII_Disponibilidad_de_datos!H65","v":"n/a"}]
[null,null,null,null,null,null,null,"Red",1,{"$f":"IF(J49=FALSE,(J45/2+J46<J47),FALSE)","v":false},{"$f":"IF(K49=FALSE,(K45/2+K46<K47),FALSE)","v":false},{"$f":"IF(L49=FALSE,(L45/2+L46<L47),FALSE)","v":false},null,null,null,null,null,null,null,null,null,"Mejora de la eficiencia energética",null,null,null,null,null,{"$f":"VII_Disponibilidad_de_datos!F66","v":".."},{"$f":"VII_Disponibilidad_de_datos!G66","v":".."},{"$f":"VII_Disponibilidad_de_datos!H66","v":".."}]
[null,null,null,"Table 5",null,{"$f":"ROUND(AVERAGEIF(F53:F59,\">0\",F53:F59),1)","v":{"$error":"#DIV/0!"}},null,null,null,{"$f":"IF(J44=FALSE,SUMPRODUCT($I$49:$I$51*J49:J51),0)","v":0},{"$f":"IF(K44=FALSE,SUMPRODUCT($I$49:$I$51*K49:K51),0)","v":0},{"$f":"MIN(L55:L56)","v":0},"<-- main group ratings!",null,null,null,null,null,null,null,null,"Planificación energética (modelización)",null,null,null,null,null,{"$f":"VII_Disponibilidad_de_datos!F67","v":".."},{"$f":"VII_Disponibilidad_de_datos!G67","v":".."},{"$f":"VII_Disponibilidad_de_datos!H67","v":".."}]
[null,null,null,{"$f":"IV_SEGUIMIENTO!C42","v":"● Producción de energía"},{"$f":"IV_SEGUIMIENTO!E42","v":0},{"$f":"IF(E53=\"Yes\",3,IF(E53=\"Partial\",2,IF(E53=\"No\",1,0)))","v":0}]
[null,null,null,{"$f":"IV_SEGUIMIENTO!C43","v":"● Procesos de transformación energética en la industria siderúrgica"},{"$f":"IV_SEGUIMIENTO!E43","v":0},0,null,null,"Special case: TRACK"]
[null,null,null,{"$f":"IV_SEGUIMIENTO!C44","v":"● Electricidad generada por autoproductores: industrial"},{"$f":"IV_SEGUIMIENTO!E44","v":0},0,null,null,null,null,"Default rating condition",{"$f":"IF(L44=FALSE,SUMPRODUCT($I$49:$I$51*L49:L51),0)","v":0}]
[null,null,null,{"$f":"IV_SEGUIMIENTO!C45","v":"● Electricidad generada por autoproductores: residencial"},{"$f":"IV_SEGUIMIENTO!E45","v":0},0,null,null,null,null,"Test for 'penalty'",{"$f":"IF(L55=3,IF(OR(J52<3,P46<3)=TRUE,L55-1,L55),L55)","v":0}]
[null,null,null,{"$f":"IV_SEGUIMIENTO!C46","v":"● Ámbito geográfico"},{"$f":"IV_SEGUIMIENTO!E46","v":0},0]
[null,null,null,{"$f":"IV_SEGUIMIENTO!C47","v":"● Demanda de energía no comercial"},{"$f":"IV_SEGUIMIENTO!E47","v":0},0,null,null,"Rating logic"]
[null,null,null,{"$f":"IV_SEGUIMIENTO!C48","v":"● Turismo de combustible"},{"$f":"IV_SEGUIMIENTO!E48","v":0},0,null,null,"Individual answers",null,null,"Aggregate"]
[null,null,null,null,null,null,null,null,"SÍ","SÍ","SÍ","SÍ"]
[null,null,null,null,null,null,null,null,"SÍ","SÍ","PARCIAL","PARCIAL"]
[null,null,null,null,null,null,null,null,"SÍ","SÍ","NO","PARCIAL"]
[null,null,null,null,null,null,null,null,"SÍ","NO","NO","NO"]
[null,null,null,null,null,null,null,null,"SÍ","PARCIAL","PARCIAL","PARCIAL"]
[null,null,null,null,null,null,null,null,"SÍ","PARCIAL","NO","PARCIAL"]
[null,null,null,null,null,null,null,null,"PARCIAL","PARCIAL","PARCIAL","PARCIAL"]
[null,null,null,null,null,null,null,null,"PARCIAL","PARCIAL","NO","PARCIAL"]
[null,null,null,null,null,null,null,null,"PARCIAL","NO","NO","NO"]
[null,null,null,null,null,null,null,null,"NO","NO","NO","NO"]

{"sheet":"II_PLANIFICACIÓN","index":3,"n_rows":80,"n_cols":5,"rows_kept":80,"cut":false,"hidden":false,"merged":[[26,2,29,2],[49,2,50,2],[60,2,61,2],[71,2,74,2],[3,4,3,6],[3,1,3,2],[79,2,82,2],[52,2,55,2],[7,2,8,2],[15,2,16,2],[23,2,24,2],[36,2,39,2],[44,2,47,2],[63,2,66,2],[68,2,69,2],[76,2,77,2],[33,2,34,2],[41,2,42,2],[10,2,13,2],[18,2,21,2]]}
[]
[null,"II) Mejora del sistema nacional de datos energéticos: PLANIFICACIÓN (dimensión estratégica)"]
[]
[null,{"$f":"\"Notas:\n● Consulte la sección «PLANIFICACIÓN» en las páginas \"&PLAN&\" de la hoja de ruta.\n● Las preguntas de las secciones se han modificado para permitir responder sí/no. Introduzca las respuestas en las celdas azules (Sí, Parcial, No).\"","v":"Notas:\n● Consulte la sección «PLANIFICACIÓN» en las páginas 30-39 de la hoja de ruta.\n● Las preguntas de las secciones se han modificado para permitir responder sí/no. Introduzca las respuestas en las celdas azules (Sí, Parcial, No)."},null,null,{"$f":"country_name","v":0}]
[]
[null,"1.","Necesidades de datos y usuarios/as"]
[]
[null,"1.A","¿Existen políticas energéticas relevantes que requieran datos de energía para su diseño y evaluación?"]
[]
[]
[null,null,"Información adicional (opcional)"]
[]
[]
[]
[]
[null,"1.B","¿Se sabe quiénes utilizarán los datos?"]
[]
[]
[null,null,"Información adicional (opcional)"]
[]
[]
[]
[]
[null,"1.C","¿Se identifican y abordan de forma periódica las necesidades cambiantes de datos?"]
[]
[]
[null,null,"Información adicional (opcional)"]
[]
[]
[]
[]
[null,"2.","Desarrollo de la estrategia"]
[]
[null,"2.A","¿Existe una estrategia para la generación y el desarrollo de datos energéticos? "]
[]
[]
[null,null,"Información adicional (opcional)"]
[]
[]
[]
[]
[null,"2.B","¿Incluye la estrategia la identificación de las prioridades en la recopilación de datos?"]
[]
[]
[null,null,"Información adicional (opcional)"]
[]
[]
[]
[]
[null,"2.C","¿Se actualiza con regularidad para responder a la evolución de las necesidades?"]
[]
[]
[null,null,"Información adicional (opcional)"]
[]
[]
[]
[]
[]
[null,"3.","Mecanismos de financiación"]
[]
[null,"3.A","¿Financia la administración nacional las principales estadísticas energéticas?"]
[]
[]
[null,null,"Información adicional (opcional)"]
[]
[]
[]
[]
[null,"3.B","¿Existen otros mecanismos de financiación además de los convencionales (es decir, fondos públicos)? "]
[]
[]
[null,null,"Información adicional (opcional)"]
[]
[]
[]
[]
[null,"3.C","¿Los mecanismos de financiación son suficientes y sostenibles para el trabajo rutinario y complementario?"]
[]
[]
[null,null,"Información adicional (opcional)"]

{"sheet":"III_IMPLEMENTACIÓN","index":4,"n_rows":80,"n_cols":5,"rows_kept":80,"cut":false,"hidden":false,"merged":[[3,4,3,6],[26,2,29,2],[36,2,39,2],[44,2,47,2],[23,2,24,2],[7,2,8,2],[15,2,16,2],[10,2,13,2],[18,2,21,2],[3,1,3,2],[63,2,66,2],[71,2,74,2],[79,2,82,2],[68,2,69,2],[76,2,77,2],[60,2,61,2],[33,2,34,2],[41,2,42,2],[49,2,50,2],[52,2,55,2]]}
[]
[null,"III) Mejora del sistema nacional de datos energéticos: IMPLEMENTACIÓN (dimensión operativa)"]
[]
[null,{"$f":"\"Notas:\n● Consulte la sección «IMPLEMENTACIÓN» en las páginas \"&SETUP&\" de la hoja de ruta.\n● Las preguntas de las secciones se han modificado para permitir responder sí/no. Introduzca las respuestas en las celdas azules (Sí, Parcial, No).\"","v":"Notas:\n● Consulte la sección «IMPLEMENTACIÓN» en las páginas 40-54 de la hoja de ruta.\n● Las preguntas de las secciones se han modificado para permitir responder sí/no. Introduzca las respuestas en las celdas azules (Sí, Parcial, No)."},null,null,{"$f":"country_name","v":0}]
[]
[null,"4.","Marco jurídico"]
[]
[null,"4.A","¿Existe un marco normativo para las estadísticas energéticas (por ejemplo, una ley de estadísticas energéticas)? (Si hay uno para las estadísticas en general, responda «Parcial»)"]
[]
[]
[null,null,"Información adicional (opcional)"]
[]
[]
[]
[]
[null,"4.B","¿Requiere que quienes responden las encuestas proporcionen datos (es decir, tiene carácter obligatorio)?"]
[]
[]
[null,null,"Información adicional (opcional)"]
[]
[]
[]
[]
[null,"4.C","¿Funciona y es adecuado para el trabajo? ¿Se asegura su cumplimiento?"]
[]
[]
[null,null,"Información adicional (opcional)"]
[]
[]
[]
[]
[null,"5.","Acuerdos institucionales"]
[]
[null,"5.A","¿Existe una entidad responsable de coordinar el sistema nacional de información energética?"]
[]
[]
[null,null,"Información adicional (opcional)"]
[]
[]
[]
[]
[null,"5.B","¿La distribución de tareas es lo suficientemente clara para evitar tanto las carencias como los solapamientos en la recopilación de datos?"]
[]
[]
[null,null,"Información adicional (opcional)"]
[]
[]
[]
[]
[null,"5.C","¿Se han establecido mecanismos para fomentar la colaboración institucional y el intercambio de datos a nivel nacional (por ejemplo, memorandos de entendimiento, convenios o grupos de trabajo)?"]
[]
[]
[null,null,"Información adicional (opcional)"]
[]
[]
[]
[]
[]
[null,"6.","Recursos humanos, técnicos y financieros"]
[]
[null,"6.A","¿Los recursos técnicos y financieros disponibles son adecuados y tangibles a largo plazo?"]
[]
[]
[null,null,"Información adicional (opcional)"]
[]
[]
[]
[]
[null,"6.B","¿Sufren los recursos disponibles (humanos, técnicos y financieros) grandes fluctuaciones anuales o son relativamente estables a lo largo del tiempo?"]
[]
[]
[null,null,"Información adicional (opcional)"]
[]
[]
[]
[]
[null,"6.C","¿Existe suficiente capacidad de personal? ¿Recibe formación continua el personal?"]
[]
[]
[null,null,"Información adicional (opcional)"]

{"sheet":"IV_SEGUIMIENTO","index":5,"n_rows":115,"n_cols":6,"rows_kept":115,"cut":false,"hidden":false,"merged":[[3,4,3,6],[56,2,57,2],[64,2,65,2],[7,2,8,2],[15,2,16,2],[23,2,24,2],[10,2,13,2],[18,2,21,2],[34,2,37,2],[49,2,52,2],[3,1,3,2],[93,2,96,2],[114,2,117,2],[59,2,62,2],[67,2,70,2],[75,2,78,2],[85,2,88,2],[82,2,83,2],[90,2,91,2],[98,2,99,2],[72,2,73,2]]}
[]
[null,"IV) Mejora del sistema nacional de datos energéticos: SEGUIMIENTO (procesamiento de datos)"]
[]
[null,{"$f":"\"Notas:\n● Consulte la sección «SEGUIMIENTO» en las páginas \"&TRACK&\" de la hoja de ruta.\n● Las preguntas de las secciones se han modificado para permitir responder sí/no. Introduzca las respuestas en las celdas azules (Sí, Parcial, No).\"","v":"Notas:\n● Consulte la sección «SEGUIMIENTO» en las páginas 55-85 de la hoja de ruta.\n● Las preguntas de las secciones se han modificado para permitir responder sí/no. Introduzca las respuestas en las celdas azules (Sí, Parcial, No)."},null,null,{"$f":"country_name","v":0}]
[]
[null,"7.","Recopilación de datos, metodologías y verificación de la calidad"]
[]
[null,"7.A","¿Se cuenta con métodos adecuados de recopilación de datos (por ejemplo, uso de fuentes administrativas y encuestas sectoriales y sobre combustible)? "]
[]
[]
[null,null,"Información adicional (opcional)"]
[]
[]
[]
[]
[null,"7.B","¿La recopilación de datos sigue metodologías y estándares documentados? "]
[]
[]
[null,null,"Información adicional (opcional)"]
[]
[]
[]
[]
[null,"7.C","¿Existen procesos eficaces para controlar la calidad de los datos?"]
[]
[]
[null,"7.D","¿Se aplican las siguientes referencias al contexto nacional? (Consulte la tabla de la página 58)"]
[]
[null,null,"● Recomendaciones Internacionales para las Estadísticas de Energía (IRES) [Naciones Unidas, 2011]",null,null,"(enlace)"]
[null,null,"● Clasificación Internacional Uniforme de Productos Energéticos (SIEC) [parte de las IRES]",null,null,"(enlace)"]
[null,null,"● Clasificación Industrial Internacional Uniforme de todas las actividades económicas (CIIU)",null,null,"(enlace)"]
[null,null,"● Manual de Compiladores de Estadísticas Energéticas (ESCM)",null,null,"(enlace)"]
[null,null,"● Directrices del IPCC de 2006 para los inventarios nacionales de gases de efecto invernadero, volumen 2: Energía",null,null,"(enlace)"]
[]
[null,null,"Información adicional (opcional)"]
[]
[]
[]
[]
[null,"7.F","¿La recopilación de datos actual refleja plenamente lo siguiente? (Consulte la tabla de las páginas 61-63)"]
[]
[null,null,"● Producción de energía"]
[null,null,"● Procesos de transformación energética en la industria siderúrgica"]
[null,null,"● Electricidad generada por autoproductores: industrial"]
[null,null,"● Electricidad generada por autoproductores: residencial"]
[null,null,"● Ámbito geográfico"]
[null,null,"● Demanda de energía no comercial"]
[null,null,"● Turismo de combustible"]
[]
[null,null,"Información adicional (opcional)"]
[]
[]
[]
[]
[null,"8.","Gestión de datos e innovación"]
[]
[null,"8.A","¿Es adecuado el marco actual de gestión de datos?"]
[]
[]
[null,null,"Información adicional (opcional)"]
[]
[]
[]
[]
[null,"8.B","¿Se puede aumentar la digitalización en los procesos de recopilación, gestión y difusión de datos?"]
[]
[]
[null,null,"Información adicional (opcional)"]
[]
[]
[]
[]
[null,"8.C","¿Existe algún plan o programa piloto para implantar métodos o enfoques innovadores en el sistema nacional de información energética?"]
[]
[]
[null,null,"Información adicional (opcional)"]
[]
[]
[]
[]
[null,"9.","Acceso a los datos y su difusión"]
[]
[null,"9.A","¿Son las estadísticas energéticas fácilmente localizables y accesibles? "]
[]
[]
[null,null,"Información adicional (opcional)"]
[]
[]
[]
[]
[null,"9.B","¿Los productos finales de datos son relevantes para quienes los van a utilizar?"]
[]
[]
[null,null,"Información adicional (opcional)"]
[]
[]
[]
[]
[null,"9.C","¿Son transparentes los datos? ¿Hay metadatos disponibles?"]
[]
[]
[null,null,"Considere que es un usuario general de datos. Siga los pasos y registre los resultados."]
[null,null,"1) Encontrar la web de la organización a través de un buscador"]
[null,null,"¿Aparece la web entre los primeros resultados?"]
[null,null,"2) Navegar hasta la sección de datos de la web"]
[null,null,"¿Existe una sección de datos específica?"]
[null,null,"¿Cuántos clics se necesitan para llegar a esta sección (indique el número)?"]
[null,null,"3) Navegar hasta las estadísticas energéticas"]
[null,null,"¿Es «energía» una categoría independiente?"]
[null,null,"¿Cuántos clics se necesitan para llegar a esta sección (indique el número)?"]
[null,null,"4) Exportar la información deseada"]
[null,null,"¿Se puede descargar la información?"]
[null,null,"¿La información está disponible en formatos fácilmente manejables (hojas de cálculo o base de datos)? "]
[]
[null,null,"Información adicional (opcional)"]

{"sheet":"V_Información_del_país","index":6,"n_rows":14,"n_cols":5,"rows_kept":14,"cut":false,"hidden":false,"merged":[[1,1,1,5],[3,4,3,6],[3,1,3,2],[13,2,13,4],[5,2,5,4],[7,2,7,4],[9,2,9,4],[11,2,11,4]]}
[]
[null,"V) Mejora de la capacidad estadística nacional para el seguimiento de las transiciones energéticas: Información nacional"]
[]
[null,{"$f":"\"Notas:\n● Consulte el anexo de la hoja de ruta.\n● La información de esta sección se ha recopilado para entender mejor el contexto nacional.\"","v":"Notas:\n● Consulte el anexo de la hoja de ruta.\n● La información de esta sección se ha recopilado para entender mejor el contexto nacional."},null,null,{"$f":"country_name","v":0}]
[]
[null,"Institución/es nacional/es implicada/s: ","Información adicional (opcional)"]
[]
[null,"Facilitadores clave: ","Información adicional (opcional)"]
[]
[null,"Caso de éxito: ","Información adicional (opcional)"]
[]
[null,"Principales retos: ","Información adicional (opcional)"]
[]
[null,"Aprendizajes: ","Información adicional (opcional)"]

{"sheet":"VI_Facilitadores","index":7,"n_rows":19,"n_cols":14,"rows_kept":19,"cut":false,"hidden":false,"merged":[[14,4,15,6],[14,8,15,10],[14,12,15,14],[8,4,9,6],[8,8,9,10],[8,12,9,14],[11,4,12,6],[11,8,12,10],[11,12,12,14],[1,1,1,15],[3,1,3,12],[3,13,3,15],[4,1,4,13],[6,4,6,6],[6,8,6,10],[6,12,6,14]]}
[]
[null,"VI) Mejora de la capacidad estadística nacional para el seguimiento de las transiciones energéticas:\nFacilitadores a largo plazo"]
[]
[null,"Notas:\n● Consulte la sección «Mejora de las capacidades nacionales en materia de datos» en las páginas 22-26 de la hoja de ruta.\n● Los facilitadores a largo plazo refuerzan todas las actividades y como pilares clave, respaldan todo el marco. Es útil evaluarlos antes de analizar las dimensiones específicas.",null,null,null,null,null,null,null,null,null,null,null,{"$f":"country_name","v":0}]
[null,"Lea atentamente las descripciones de las calificaciones. A continuación, elija la calificación que mejor describa la situación actual desde la perspectiva del apoyo al desarrollo de estadísticas energéticas nacionales (1 = la más baja, 3 = la más alta):"]
[]
[null,null,null,null,"A: Concienciación y voluntad política",null,null,null,"B: Capacidad y estabilidad del personal",null,null,null,"C: Colaboración multilateral a nivel nacional e internacional"]
[]
[null,null,3,null,"Los datos de energía se consideran parte integral y se utilizan de forma sistemática en la formulación de políticas energéticas.",null,null,null,"Existe un equipo especializado en estadísticas energéticas. El personal recibe formación sobre metodología internacional y comparte sus conocimientos dentro del equipo.",null,null,null,"Cooperación continua con las principales partes interesadas. Los datos se comparten sistemáticamente con otros organismos nacionales e internacionales."]
[]
[]
[null,null,2,null,"Los datos de energía se consideran parcialmente, pero no se utilizan de forma sistemática en la formulación de políticas energéticas.",null,null,null,"Existe un equipo especializado en estadísticas energéticas; sin embargo, el personal no recibe formación sobre metodología internacional y el intercambio de conocimientos dentro del equipo es mínimo.",null,null,null,"Cooperación puntual tanto a nivel nacional como internacional."]
[]
[]
[null,null,1,null,"Los datos de energía no se consideran parte de la planificación o la formulación de políticas energéticas.",null,null,null,"No hay personal especializado o formado para trabajar con datos energéticos.",null,null,null,"No se coopera a nivel nacional o internacional en el ámbito de las estadísticas energéticas."]
[]
[]
[]
[null,null,null,"Indique los valores (1- 3)"]

{"sheet":"VII_Disponibilidad_de_datos","index":8,"n_rows":67,"n_cols":18,"rows_kept":67,"cut":false,"hidden":false,"merged":[[3,1,3,7],[3,8,3,9],[52,2,52,9],[5,11,5,14],[5,3,5,9],[45,3,50,9],[7,1,36,1],[45,2,46,2]]}
[]
[null,"VII) Evaluación de la disponibilidad de datos",null,null,null,null,null,null,null,null,null,"These columns should be hidden in the final version!"]
[]
[null,"Notas:\n● Consulte la seción «Datos energéticos clave» en las páginas 12-15 de la hoja de ruta.\n● Indique la disponibilidad de datos en las celdas azules: Sí = disponible, No = no disponible, («Parcial» también es una opción).\n● Si un producto o flujo no es relevante en el contexto nacional, introduzca «Sí».",null,null,null,null,null,null,{"$f":"country_name","v":0}]
[]
[null,null,null,"Principales productos energéticos",null,null,null,null,null,null,null,"Count of answers"]
[null,null,null,"Carbón","Petróleo y derivados del petróleo","Gas natural","Biocombustibles sólidos","Electricidad","Calor","Total",null,"Yes","Partial","No","Empty",null,"Assessment of total supply"]
[null,"Principales flujos de energía","Suministro energético",null,null,null,null,null,null,null,null,{"$f":"SUM(L9:L12)","v":0},{"$f":"SUM(M9:M12)","v":0},0,22,null,{"$f":"IF(O8=0,IF(SUM(M8:N8)=0,\"Fully\",\"Partially\"),\"..\")","v":".."}]
[null,null,"Producción",null,null,null,null,null,null,{"$f":"IF(O9=0,IF(OR(M9,N9),$M$7,$L$7),\"..\")","v":".."},null,{"$f":"COUNTIF($D9:$I9,L$7)","v":0},0,0,{"$f":"COUNTBLANK($D9:$I9)","v":6}]
[null,null,"Comercio",null,null,null,null,null,null,{"$f":"IF(O10=0,IF(OR(M10,N10),$M$7,$L$7),\"..\")","v":".."},null,0,0,0,{"$f":"COUNTBLANK($D10:$I10)","v":6}]
[null,null,"Reservas",null,null,null,null,"x","x",{"$f":"IF(O11=0,IF(OR(M11,N11),$M$7,$L$7),\"..\")","v":".."},null,0,0,0,{"$f":"COUNTBLANK($D11:$I11)","v":4}]
[null,null,"Suministro nacional",null,null,null,null,null,null,{"$f":"IF(O12=0,IF(OR(M12,N12),$M$7,$L$7),\"..\")","v":".."},null,0,0,0,{"$f":"COUNTBLANK($D12:$I12)","v":6},null,"Assessment of total demand"]
[null,null,"Demanda de energía",null,null,null,null,null,null,null,null,{"$f":"SUM(L14:L37)","v":0},{"$f":"SUM(M14:M37)","v":0},0,{"$f":"SUM(O14:O37)","v":144},null,{"$f":"IF(O13=0,IF(SUM(M13:N13)=0,\"Fully\",\"Partially\"),\"..\")","v":".."}]
[null,null,"Entradas: electricidad/calor",null,null,null,null,null,null,{"$f":"IF(O14=0,IF(OR(M14,N14),$M$7,$L$7),\"..\")","v":".."},null,{"$f":"COUNTIF($D14:$I14,L$7)","v":0},0,0,{"$f":"COUNTBLANK($D14:$I14)","v":6}]
[null,null,"Entradas: otra transformación",null,null,null,null,null,null,"..",null,0,0,0,6]
[null,null,"Industria",null,null,null,null,null,null,"..",null,0,0,0,6]
[null,null,"Fundición, hierro y acero",null,null,null,null,null,null,"..",null,0,0,0,6]
[null,null,"Química y petroquímica",null,null,null,null,null,null,"..",null,0,0,0,6]
[null,null,"Metales no ferrosos",null,null,null,null,null,null,"..",null,0,0,0,6]
[null,null,"Minerales no metálicos (cemento)",null,null,null,null,null,null,"..",null,0,0,0,6]
[null,null,"Otra",null,null,null,null,null,null,"..",null,0,0,0,6]
[null,null,"Transporte",null,null,null,null,null,null,"..",null,0,0,0,6]
[null,null,"Por carretera",null,null,null,null,null,null,"..",null,0,0,0,6]
[null,null,"Aéreo",null,null,null,null,null,null,"..",null,0,0,0,6]
[null,null,"Marítimo ",null,null,null,null,null,null,"..",null,0,0,0,6]
[null,null,"Ferroviario",null,null,null,null,null,null,"..",null,0,0,0,6]
[null,null,"Otro",null,null,null,null,null,null,"..",null,0,0,0,6]
[null,null,"Residencial/hogares",null,null,null,null,null,null,"..",null,0,0,0,6]
[null,null,"Calefacción de espacios",null,null,null,null,null,null,"..",null,0,0,0,6]
[null,null,"Refrigeración de espacios",null,null,null,null,null,null,"..",null,0,0,0,6]
[null,null,"Cocina",null,null,null,null,null,null,"..",null,0,0,0,6]
[null,null,"Iluminación y electrodomésticos",null,null,null,null,null,null,"..",null,0,0,0,6]
[null,null,"Otros sectores de consumo final",null,null,null,null,null,null,"..",null,0,0,0,6]
[null,null,"Comercio y servicios públicos",null,null,null,null,null,null,"..",null,0,0,0,6]
[null,null,"Agricultura",null,null,null,null,null,null,"..",null,{"$f":"COUNTIF($D35:$I35,L$7)","v":0},0,0,6]
[null,null,"Silvicultura",null,null,null,null,null,null,"..",null,0,0,0,6]
[null,null,"Otro",null,null,null,null,null,null,"..",null,0,0,0,6,null,"Assessment of economic activity"]
[null,null,"Actividad económica",null,null,null,null,null,null,null,null,{"$f":"SUM(L39:L44)","v":0},{"$f":"SUM(M39:M44)","v":0},{"$f":"SUM(N39:N44)","v":0},{"$f":"SUM(O39:O44)","v":6},null,{"$f":"IF(O38=0,IF(SUM(M38:N38)=0,\"Fully\",\"Partially\"),\"..\")","v":".."}]
[null,null,"Producto interior bruto",null,null,null,null,null,null,null,null,{"$f":"COUNTIF($J39,L$7)","v":0},0,0,{"$f":"COUNTBLANK($J39)","v":1}]
[null,null,"Valor añadido por actividades económicas",null,null,null,null,null,null,null,null,0,0,0,1]
[null,null,"Población",null,null,null,null,null,null,null,null,0,0,0,1]
[null,null,"Superficie edificada",null,null,null,null,null,null,null,null,0,0,0,1]
[null,null,"Tasa de acceso a la electricidad",null,null,null,null,null,null,null,null,0,0,0,1]
[null,null,"Acceso a energía limpia para cocinar",null,null,null,null,null,null,null,null,0,0,0,1]
[]
[null,null,"Notas sobre los datos:","Información adicional (opcional)",null,null,null,null,null,null,null,null,null,null,{"$f":"SUM(O8,O13,O38)","v":172},"Empty cells"]
[null,null,null,null,null,null,null,null,null,null,null,null,null,null,{"$f":"COUNTA(D9:I12,D14:I37,J39:J44)-2","v":0},"Answers"]
[null,null,null,null,null,null,null,null,null,null,null,null,null,"Notification for the cover-sheet",{"$f":"IF(O47=0,\"\",IF(O46=0,\"All questions answered!\",O12 &\" unanswered questions\"))","v":""}]
[]
[]
[]
[]
[null,null,"Los datos energéticos disponibles permiten respaldar las políticas nacionales del siguiente modo:"]
[null,null,{"$f":"IF(OR(O46=0,O47=0),\"\",\"Note: Results are shown only when all fields are filled (there are currently \" &O46& \" empty fields).\")","v":""},null,null,null,null,null,null,null,null,"Data requirements as per the roadmap",null,null,null,"Data available as per the answers"]
[]
[null,null,null,null,null,"Suministro energético","Demanda de energía","Actividad económica",null,null,null,"Supply","Demand","Activity",null,"Supply","Demand","Activity"]
[null,null,"Objetivos de desarrollo sostenible"]
[null,null,"ODS 7.2",null,null,{"$f":"IF(L58=\"x\",P58,\"n/a\")","v":".."},"..","..",null,null,null,"x","x","x",null,{"$f":"$Q$8","v":".."},{"$f":"$Q$13","v":".."},{"$f":"$Q$38","v":".."}]
[null,null,"ODS 7.3",null,null,"..","n/a","..",null,null,null,"x",null,"x",null,{"$f":"$Q$8","v":".."},{"$f":"$Q$13","v":".."},{"$f":"$Q$38","v":".."}]
[null,null,"Informes climáticos internacionales"]
[null,null,"Inventario nacional de emisiones de gases de efecto invernadero (GEI)",null,null,{"$f":"IF(L61=\"x\",P61,\"n/a\")","v":".."},"..","n/a",null,null,null,"x","x",null,null,{"$f":"$Q$8","v":".."},{"$f":"$Q$13","v":".."},{"$f":"$Q$38","v":".."}]
[null,null,"Contribuciones determinadas a nivel nacional (CDN)",null,null,"..","..","..",null,null,null,"x","x","x",null,{"$f":"$Q$8","v":".."},{"$f":"$Q$13","v":".."},{"$f":"$Q$38","v":".."}]
[null,null,"Políticas energéticas sectoriales nacionales"]
[null,null,"Sustitución de combustibles",null,null,{"$f":"IF(L64=\"x\",P64,\"n/a\")","v":".."},"..","n/a",null,null,null,"x","x",null,null,{"$f":"$Q$8","v":".."},{"$f":"$Q$13","v":".."},{"$f":"$Q$38","v":".."}]
[null,null,"Objetivos de energía renovable",null,null,"..","..","n/a",null,null,null,"x","x",null,null,{"$f":"$Q$8","v":".."},{"$f":"$Q$13","v":".."},{"$f":"$Q$38","v":".."}]
[null,null,"Mejora de la eficiencia energética",null,null,"..","..","..",null,null,null,"x","x","x",null,{"$f":"$Q$8","v":".."},{"$f":"$Q$13","v":".."},{"$f":"$Q$38","v":".."}]
[null,null,"Planificación energética (modelización)",null,null,"..","..","..",null,null,null,"x","x","x",null,{"$f":"$Q$8","v":".."},{"$f":"$Q$13","v":".."},{"$f":"$Q$38","v":".."}]